[Event "RUS-chT Men Rapid 2019"]
[Site "Sochi"]
[Date "2019.10.19"]
[Round "7.10"]
[White "Khegay, Dmitriy"]
[Black "Faizrakhmanov, Ramil"]
[Result "1/2-1/2"]
[ECO "B13"]
[WhiteElo "2509"]
[BlackElo "2434"]
[Annotator "ChessBase"]
[PlyCount "130"]
[EventDate "2019.10.18"]
[EventType "swiss"]
[EventCountry "RUS"]
[SourceTitle "playchess.com"]
[Source "ChessBase"]
[SourceQuality "1"]
[TimeControl "900+10"]

1. e4 {[%emt 0:00:00]} c6 {[%emt 0:00:00]} 2. d4 {[%emt 0:00:00]} d5 {[%emt 0:00:00]} 3. exd5 {[%emt 0:00:00]} cxd5 {[%emt 0:00:00]} 4. Bd3 {[%emt 0:00:01]} Nc6 {[%emt 0:00:00]} 5. c3 {[%emt 0:00:01]} Nf6 {[%emt 0:00:08]} 6. h3 {[%emt 0:00:02]} Qc7 {[%emt 0:00:19]} 7. Nf3 {[%emt 0:00:01]} g6 {[%emt 0:00:06]} 8. O-O {[%emt 0:00:02]} Bf5 {[%emt 0:00:08]} 9. Be2 {[%emt 0:00:01]} Bg7 {[%emt 0:00:05]} 10. Be3 {[%emt 0:00:06]} O-O {[%emt 0:00:11]} 11. Re1 {[%emt 0:00:02]} a6 {[%emt 0:00:23]} 12. Nbd2 {[%emt 0:00:07]} b5 {[%emt 0:00:39]} 13. Qc1 {[%emt 0:00:51]} Ne4 {[%emt 0:00:27]} 14. Nxe4 {[%emt 0:00:24]} Bxe4 {[%emt 0:00:05]} 15. Nd2 {[%emt 0:00:20]} Bf5 {[%emt 0:00:05]} 16. Nb3 {[%emt 0:00:52]} Qc8 {[%emt 0:02:04]} 17. Nc5 {[%emt 0:00:13]} b4 {[%emt 0:01:01]} 18. Bh6 {[%emt 0:01:06]} bxc3 {[%emt 0:00:30]} 19. bxc3 {[%emt 0:00:02]} Bxh6 {[%emt 0:01:09]} 20. Qxh6 {[%emt 0:00:33]} e5 {[%emt 0:00:05]} 21. Qd2 {[%emt 0:00:18]} exd4 {[%emt 0:01:36]} 22. cxd4 {[%emt 0:00:01]} Qd8 {[%emt 0:00:47]} 23. Bxa6 {[%emt 0:00:22]} Ra7 {[%emt 0:00:27]} 24. Bb5 {[%emt 0:00:10]} Na5 {[%emt 0:00:26]} 25. a4 {[%emt 0:00:12]} Qh4 {[%emt 0:00:35]} 26. Re5 {[%emt 0:01:10]} Nc4 {[%emt 0:00:30]} 27. Bxc4 {[%emt 0:00:03]} dxc4 {[%emt 0:00:02]} 28. Rae1 {[%emt 0:00:07]} Raa8 {[%emt 0:00:33]} 29. Qc3 {[%emt 0:01:58]} Rfd8 {[%emt 0:01:23]} 30. R1e3 {[%emt 0:02:04]} Bd3 {[%emt 0:01:25]} 31. a5 {[%emt 0:02:42]} Qf6 {[%emt 0:01:01]} 32. a6 {[%emt 0:00:50]} Qb6 {[%emt 0:00:22]} 33. Re7 {[%emt 0:00:21]} Rd5 {[%emt 0:00:56]} 34. Re8+ {[%emt 0:01:03]} Rxe8 {[%emt 0:00:02]} 35. Rxe8+ {[%emt 0:00:01]} Kg7 {[%emt 0:00:00]} 36. Re7 {[%emt 0:00:14]} Qb1+ {[%emt 0:02:44]} 37. Re1 {[%emt 0:00:01]} Qb6 {[%emt 0:00:09]} 38. Ra1 {[%emt 0:00:15]} Qa7 {[%emt 0:00:24]} 39. Qb2 {[%emt 0:00:01]} Rd8 {[%emt 0:00:24]} 40. Qb7 {[%emt 0:00:59]} Ra8 {[%emt 0:00:12]} 41. Ra3 {[%emt 0:00:19]} Bf5 {[%emt 0:00:15]} 42. Qb4 {[%emt 0:01:00]} Rb8 {[%emt 0:00:10]} 43. Qxc4 {[%emt 0:00:43]} Rb1+ {[%emt 0:00:01]} 44. Kh2 {[%emt 0:00:01]} Qc7+ {[%emt 0:00:00]} 45. Rg3 {[%emt 0:00:01]} Qf4 {[%emt 0:00:01]} 46. Nd3 {[%emt 0:01:31]} Bxd3 {[%emt 0:00:37]} 47. Qxd3 {[%emt 0:00:06]} Ra1 {[%emt 0:00:03]} 48. Qe3 {[%emt 0:01:19]} Qd6 {[%emt 0:00:08]} 49. f4 {[%emt 0:00:12]} Rxa6 {[%emt 0:00:16]} 50. Rf3 {[%emt 0:00:06]} Ra4 {[%emt 0:00:10]} 51. Qe5+ {[%emt 0:00:01]} Qxe5 52. dxe5 h5 {[%emt 0:00:03]} 53. Kg3 {[%emt 0:00:04]} Re4 {[%emt 0:00:04]} 54. Rc3 {[%emt 0:00:03]} Re1 {[%emt 0:00:07]} 55. Kh4 {[%emt 0:00:09]} Re2 {[%emt 0:00:24]} 56. g3 {[%emt 0:00:03]} Rh2 {[%emt 0:00:15]} 57. Rc7 {[%emt 0:00:08]} Re2 {[%emt 0:00:11]} 58. g4 {[%emt 0:00:39]} hxg4 {[%emt 0:00:01]} 59. hxg4 {[%emt 0:00:00]} Re4 {[%emt 0:00:16]} 60. Kg5 {[%emt 0:00:01]} Re2 {[%emt 0:00:02]} 61. Re7 {[%emt 0:00:04]} Re1 {[%emt 0:00:11]} 62. Ra7 {[%emt 0:00:41]} Re2 {[%emt 0:00:01]} 63. Kh4 {[%emt 0:00:04]} Re4 {[%emt 0:00:06]} 64. Kg3 {[%emt 0:00:05]} g5 {[%emt 0:00:06]} 65. fxg5 {[%emt 0:00:11]} Rxe5 {[%emt 0:00:02]} 1/2-1/2

[Event "RUS-chT Men Rapid 2019"]
[Site "Sochi"]
[Date "2019.10.19"]
[Round "7.11"]
[White "Samusenko, Maksim"]
[Black "Pogromsky, Mikhail"]
[Result "1/2-1/2"]
[ECO "A45"]
[WhiteElo "2445"]
[BlackElo "2411"]
[Annotator "NA"]
[PlyCount "49"]
[EventDate "2019.10.18"]
[EventType "swiss"]
[EventCountry "RUS"]
[SourceTitle "playchess.com"]
[Source "ChessBase"]
[SourceQuality "1"]
[TimeControl "900+10"]

1. d4 {[%emt 0:00:00]} Nf6 {[%emt 0:00:00]} 2. Bf4 {[%emt 0:00:00]} e6 {[%emt 0:00:14]} 3. e3 {[%emt 0:00:00]} b6 {[%emt 0:00:07]} 4. Nf3 {[%emt 0:00:13]} Bb7 {[%emt 0:00:02]} 5. Nbd2 {[%emt 0:00:16]} Bd6 {[%emt 0:00:34]} 6. Bg5 {[%emt 0:01:18]} Be7 {[%emt 0:00:15]} 7. Bd3 {[%emt 0:00:16]} c5 {[%emt 0:00:26]} 8. c3 {[%emt 0:00:13]} d6 {[%emt 0:00:51]} 9. O-O {[%emt 0:00:16]} Nbd7 {[%emt 0:00:34]} 10. Qe2 {[%emt 0:00:25]} O-O {[%emt 0:00:24]} 11. h3 {[%emt 0:01:36]} Nd5 {[%emt 0:01:52]} 12. Bxe7 {[%emt 0:00:33]} Qxe7 {[%emt 0:00:07]} 13. a3 {[%emt 0:00:24]} cxd4 {[%emt 0:00:42]} 14. cxd4 {[%emt 0:00:03]} Rfc8 {[%emt 0:01:05]} 15. Rfc1 {[%emt 0:00:31]} Qd8 {[%emt 0:01:40]} 16. Qd1 {[%emt 0:01:35]} Rxc1 {[%emt 0:00:28]} 17. Rxc1 {[%emt 0:01:48]} Rc8 {[%emt 0:00:01]} 18. Rxc8 {[%emt 0:00:11]} Qxc8 {[%emt 0:00:02]} 19. Ng5 {[%emt 0:00:39]} N5f6 {[%emt 0:00:36]} 20. Nge4 {[%emt 0:00:43]} Qc6 {[%emt 0:00:40]} 21. Nxf6+ {[%emt 0:02:26]} Nxf6 {[%emt 0:00:02]} 22. e4 {[%emt 0:00:02]} h6 {[%emt 0:00:27]} 23. Kh2 {[%emt 0:01:04]} Qc7 {[%emt 0:00:46]} 24. Qe1 {[%emt 0:00:41]} Qc6 {[%emt 0:00:22]} 25. Qd1 {[%emt 0:00:20]} 1/2-1/2

[Event "RUS-chT Men Rapid 2019"]
[Site "Sochi"]
[Date "2019.10.19"]
[Round "7.12"]
[White "Ozgibcev, Anatoly"]
[Black "Ibragimov, Ildar"]
[Result "1/2-1/2"]
[ECO "C01"]
[WhiteElo "2367"]
[BlackElo "2538"]
[Annotator "ChessBase"]
[PlyCount "33"]
[EventDate "2019.10.18"]
[EventType "swiss"]
[EventCountry "RUS"]
[SourceTitle "playchess.com"]
[Source "ChessBase"]
[SourceQuality "1"]
[TimeControl "900+10"]

1. e4 {[%emt 0:00:00]} e6 {[%emt 0:00:00]} 2. d4 {[%emt 0:00:00]} d5 {[%emt 0:00:00]} 3. exd5 {[%emt 0:00:03]} exd5 {[%emt 0:00:00]} 4. Nf3 {[%emt 0:00:01]} Nc6 {[%emt 0:00:06]} 5. Bb5 {[%emt 0:00:11]} Bd6 {[%emt 0:00:16]} 6. c4 {[%emt 0:00:16]} dxc4 {[%emt 0:00:33]} 7. d5 {[%emt 0:00:11]} a6 {[%emt 0:00:01]} 8. Ba4 {[%emt 0:00:05]} b5 {[%emt 0:00:02]} 9. dxc6 {[%emt 0:00:25]} bxa4 {[%emt 0:00:08]} 10. Qxa4 {[%emt 0:00:24]} Bg4 {[%emt 0:01:53]} 11. Nbd2 {[%emt 0:04:59]} Qe7+ {[%emt 0:00:06]} 12. Kd1 {[%emt 0:00:01]} Qd8 {[%emt 0:04:25]} 13. Qxc4 {[%emt 0:01:14]} Nf6 {[%emt 0:01:40]} 14. Re1+ {[%emt 0:01:06]} Kf8 {[%emt 0:00:02]} 15. Ke2 {[%emt 0:00:36]} Be6 16. Qc2 Bd5 17. Kf1 1/2-1/2

[Event "RUS-chT Men Rapid 2019"]
[Site "Sochi"]
[Date "2019.10.19"]
[Round "7.13"]
[White "Yatzenko, Anton"]
[Black "Drygalov, Andrey"]
[Result "1/2-1/2"]
[ECO "A48"]
[WhiteElo "2383"]
[BlackElo "2484"]
[Annotator "ChessBase"]
[PlyCount "134"]
[EventDate "2019.10.18"]
[EventType "swiss"]
[EventCountry "RUS"]
[SourceTitle "playchess.com"]
[Source "ChessBase"]
[SourceQuality "1"]
[TimeControl "900+10"]

1. d4 {[%emt 0:00:00]} Nf6 {[%emt 0:00:00]} 2. Nf3 {[%emt 0:00:00]} g6 {[%emt 0:00:00]} 3. Bg5 {[%emt 0:00:00]} Bg7 {[%emt 0:00:00]} 4. Nbd2 {[%emt 0:00:00]} d6 {[%emt 0:00:00]} 5. c3 {[%emt 0:00:00]} O-O {[%emt 0:00:02]} 6. e4 {[%emt 0:00:00]} c5 {[%emt 0:00:04]} 7. dxc5 {[%emt 0:00:00]} dxc5 {[%emt 0:00:01]} 8. Be2 {[%emt 0:00:00]} Nc6 {[%emt 0:00:14]} 9. O-O {[%emt 0:00:00]} h6 {[%emt 0:00:11]} 10. Bh4 {[%emt 0:00:01]} Nh5 {[%emt 0:00:44]} 11. Qc2 {[%emt 0:00:21]} g5 {[%emt 0:02:24]} 12. Bg3 {[%emt 0:00:01]} Nxg3 {[%emt 0:00:01]} 13. hxg3 {[%emt 0:00:01]} Qc7 {[%emt 0:00:08]} 14. Rfe1 {[%emt 0:00:10]} Be6 {[%emt 0:00:45]} 15. Nc4 {[%emt 0:00:02]} Rad8 {[%emt 0:00:35]} 16. Rad1 {[%emt 0:00:36]} Na5 {[%emt 0:00:13]} 17. Nxa5 {[%emt 0:01:56]} Qxa5 {[%emt 0:00:02]} 18. a3 {[%emt 0:00:01]} Qb6 {[%emt 0:00:18]} 19. Nd2 {[%emt 0:00:02]} Qc7 {[%emt 0:00:59]} 20. Nc4 {[%emt 0:00:40]} Rxd1 {[%emt 0:01:00]} 21. Rxd1 {[%emt 0:00:00]} Rd8 {[%emt 0:00:08]} 22. Rxd8+ {[%emt 0:00:16]} Qxd8 {[%emt 0:00:01]} 23. Ne3 {[%emt 0:00:01]} Bc8 {[%emt 0:00:58]} 24. Nf5 {[%emt 0:01:20]} Bf8 {[%emt 0:00:08]} 25. Bc4 {[%emt 0:01:26]} e6 {[%emt 0:00:05]} 26. Ne3 {[%emt 0:00:01]} Bg7 {[%emt 0:00:15]} 27. Qe2 {[%emt 0:01:21]} a6 {[%emt 0:00:26]} 28. Ng4 {[%emt 0:00:05]} b5 {[%emt 0:00:16]} 29. Ba2 {[%emt 0:01:21]} h5 {[%emt 0:00:38]} 30. Ne3 {[%emt 0:00:03]} g4 {[%emt 0:00:01]} 31. Bb1 {[%emt 0:01:48]} c4 {[%emt 0:01:15]} 32. Bc2 {[%emt 0:00:01]} Bb7 {[%emt 0:00:18]} 33. Kh2 {[%emt 0:01:09]} Qd6 {[%emt 0:00:07]} 34. a4 {[%emt 0:00:48]} Bc6 {[%emt 0:01:41]} 35. axb5 {[%emt 0:00:02]} axb5 {[%emt 0:00:00]} 36. f3 {[%emt 0:01:37]} Bh6 {[%emt 0:03:04]} 37. f4 {[%emt 0:00:07]} f6 {[%emt 0:00:25]} 38. b3 {[%emt 0:00:35]} cxb3 {[%emt 0:00:16]} 39. Bxb3 {[%emt 0:00:01]} Kh8 {[%emt 0:00:27]} 40. c4 {[%emt 0:02:31]} b4 {[%emt 0:00:31]} 41. c5 {[%emt 0:00:01]} Qxc5 {[%emt 0:01:56]} 42. Bxe6 {[%emt 0:00:02]} Bf8 {[%emt 0:00:21]} 43. Nxg4 {[%emt 0:01:19]} Bb5 {[%emt 0:00:44]} 44. Qf3 {[%emt 0:00:11]} Qe7 {[%emt 0:00:13]} 45. Ne3 {[%emt 0:00:58]} Qxe6 {[%emt 0:00:07]} 46. Qxh5+ {[%emt 0:00:01]} Kg8 {[%emt 0:00:01]} 47. Qxb5 {[%emt 0:00:02]} Qxe4 {[%emt 0:00:01]} 48. Nd5 {[%emt 0:00:20]} Qh7+ {[%emt 0:00:06]} 49. Kg1 {[%emt 0:00:09]} Qb1+ {[%emt 0:00:01]} 50. Kh2 {[%emt 0:00:05]} Qh7+ {[%emt 0:00:02]} 51. Kg1 {[%emt 0:00:10]} Qb1+ {[%emt 0:00:01]} 52. Kh2 {[%emt 0:01:00]} Qh7+ {[%emt 0:01:05]} 53. Kg1 {[%emt 0:00:00]} Qg6 {[%emt 0:00:14]} 54. f5 {[%emt 0:00:57]} Qxg3 {[%emt 0:00:12]} 55. Nxf6+ {[%emt 0:00:01]} Kh8 {[%emt 0:00:10]} 56. Ne8 {[%emt 0:00:14]} Qe1+ {[%emt 0:00:03]} 57. Kh2 {[%emt 0:00:01]} Qh4+ 58. Kg1 Qe1+ {[%emt 0:00:21]} 59. Kh2 {[%emt 0:00:00]} Qh4+ {[%emt 0:00:12]} 60. Kg1 {[%emt 0:00:01]} Qd4+ {[%emt 0:00:02]} 61. Kh2 {[%emt 0:00:24]} b3 {[%emt 0:00:18]} 62. Qxb3 {[%emt 0:00:23]} Qe5+ {[%emt 0:00:01]} 63. Qg3 {[%emt 0:00:23]} Qxe8 {[%emt 0:00:03]} 64. Qh4+ {[%emt 0:00:06]} Kg8 {[%emt 0:00:15]} 65. Qg5+ {[%emt 0:00:01]} Kh8 {[%emt 0:00:06]} 66. Qh4+ {[%emt 0:00:02]} Kg8 {[%emt 0:00:20]} 67. Qg5+ {[%emt 0:00:01]} Kh8 {[%emt 0:00:00]} 1/2-1/2

[Event "RUS-chT Men Rapid 2019"]
[Site "Sochi"]
[Date "2019.10.19"]
[Round "7.14"]
[White "Lugovskoy, Maxim"]
[Black "Goltsev, Dmitry"]
[Result "1-0"]
[ECO "B40"]
[WhiteElo "2436"]
[BlackElo "2309"]
[Annotator "NA"]
[PlyCount "95"]
[EventDate "2019.10.18"]
[EventType "swiss"]
[EventCountry "RUS"]
[SourceTitle "playchess.com"]
[Source "ChessBase"]
[SourceQuality "1"]
[TimeControl "900+10"]

1. e4 {[%emt 0:00:00]} c5 {[%emt 0:00:00]} 2. Nf3 {[%emt 0:00:01]} e6 {[%emt 0:00:00]} 3. c3 {[%emt 0:00:01]} Nc6 {[%emt 0:00:00]} 4. d4 {[%emt 0:00:18]} cxd4 {[%emt 0:00:00]} 5. cxd4 {[%emt 0:00:01]} d5 {[%emt 0:00:00]} 6. exd5 {[%emt 0:00:02]} exd5 {[%emt 0:00:00]} 7. Nc3 {[%emt 0:00:19]} Nf6 {[%emt 0:00:01]} 8. Bg5 {[%emt 0:00:04]} Bb4 {[%emt 0:00:30]} 9. Be2 {[%emt 0:00:16]} h6 {[%emt 0:00:16]} 10. Bh4 {[%emt 0:00:01]} O-O {[%emt 0:00:13]} 11. O-O {[%emt 0:00:02]} Be6 {[%emt 0:00:19]} 12. Ne5 {[%emt 0:00:04]} Be7 {[%emt 0:03:12]} 13. f4 {[%emt 0:00:22]} Qb6 {[%emt 0:00:55]} 14. f5 {[%emt 0:00:49]} Bxf5 {[%emt 0:08:09]} 15. Nxc6 {[%emt 0:00:19]} bxc6 {[%emt 0:00:18]} 16. Rxf5 {[%emt 0:00:02]} Qxb2 {[%emt 0:00:01]} 17. Qc1 {[%emt 0:00:31]} Ba3 {[%emt 0:00:15]} 18. Qe1 {[%emt 0:00:32]} Bb4 {[%emt 0:00:10]} 19. Rb1 {[%emt 0:01:07]} Qxc3 {[%emt 0:01:29]} 20. Rxb4 {[%emt 0:00:04]} Ne4 {[%emt 0:01:20]} 21. Qxc3 {[%emt 0:00:46]} Nxc3 {[%emt 0:00:02]} 22. Bf1 {[%emt 0:00:08]} Rfb8 {[%emt 0:00:34]} 23. a3 {[%emt 0:00:10]} Rxb4 {[%emt 0:00:47]} 24. axb4 {[%emt 0:00:01]} Rb8 {[%emt 0:00:02]} 25. Re5 {[%emt 0:00:19]} Rxb4 {[%emt 0:00:13]} 26. Re8+ {[%emt 0:00:03]} Kh7 {[%emt 0:00:01]} 27. Bd3+ {[%emt 0:00:00]} Ne4 {[%emt 0:00:01]} 28. Bxe4+ {[%emt 0:00:13]} dxe4 {[%emt 0:00:02]} 29. Rxe4 {[%emt 0:00:02]} c5 {[%emt 0:00:34]} 30. Be7 {[%emt 0:00:21]} Rb1+ {[%emt 0:00:20]} 31. Kf2 {[%emt 0:00:01]} Rb2+ {[%emt 0:00:02]} 32. Re2 {[%emt 0:00:02]} Rxe2+ {[%emt 0:00:03]} 33. Kxe2 {[%emt 0:00:01]} cxd4 {[%emt 0:00:02]} 34. Bd8 {[%emt 0:00:14]} Kg6 {[%emt 0:00:05]} 35. Kd3 {[%emt 0:00:01]} Kf5 {[%emt 0:00:02]} 36. Kxd4 {[%emt 0:00:01]} g5 {[%emt 0:00:12]} 37. Bc7 {[%emt 0:00:06]} Ke6 {[%emt 0:00:08]} 38. Ke4 {[%emt 0:00:25]} f5+ {[%emt 0:00:15]} 39. Kd4 {[%emt 0:00:00]} f4 {[%emt 0:00:11]} 40. Ke4 {[%emt 0:00:02]} Kf6 {[%emt 0:00:03]} 41. Be5+ {[%emt 0:00:15]} Ke6 {[%emt 0:00:20]} 42. Bg7 {[%emt 0:00:07]} h5 {[%emt 0:00:02]} 43. Bc3 {[%emt 0:00:02]} a6 {[%emt 0:00:15]} 44. h4 {[%emt 0:00:13]} gxh4 {[%emt 0:00:33]} 45. Kxf4 {[%emt 0:00:01]} Kd5 {[%emt 0:00:01]} 46. Kg5 {[%emt 0:00:07]} Ke4 {[%emt 0:00:19]} 47. Kxh4 {[%emt 0:00:03]} Kf4 {[%emt 0:00:05]} 48. Bd2+ {[%emt 0:00:04]} 1-0

[Event "RUS-chT Men Rapid 2019"]
[Site "Sochi"]
[Date "2019.10.19"]
[Round "7.15"]
[White "Kulik, Artur"]
[Black "Vastrukhin, Oleg"]
[Result "0-1"]
[ECO "A40"]
[WhiteElo "2014"]
[BlackElo "2428"]
[Annotator "NA RC"]
[PlyCount "94"]
[EventDate "2019.10.18"]
[EventType "swiss"]
[EventCountry "RUS"]
[SourceTitle "playchess.com"]
[Source "ChessBase"]
[SourceQuality "1"]
[TimeControl "900+10"]

1. d4 {[%emt 0:00:00]} g6 {[%emt 0:00:00]} 2. c4 {[%emt 0:00:00]} Bg7 {[%emt 0:00:00]} 3. Nf3 {[%emt 0:00:01]} d6 {[%emt 0:00:00]} 4. Nc3 {[%emt 0:00:09]} e5 {[%emt 0:00:00]} 5. dxe5 {[%emt 0:00:20]} dxe5 {[%emt 0:00:00]} 6. Qxd8+ {[%emt 0:00:04]} Kxd8 {[%emt 0:00:00]} 7. e4 {[%emt 0:00:14]} c6 {[%emt 0:00:06]} 8. Be3 {[%emt 0:00:10]} f6 {[%emt 0:00:31]} 9. O-O-O+ {[%emt 0:00:10]} Kc7 {[%emt 0:00:22]} 10. Bc5 {[%emt 0:00:54]} Be6 {[%emt 0:00:08]} 11. Bd6+ {[%emt 0:03:06]} Kc8 {[%emt 0:00:01]} 12. c5 {[%emt 0:01:17]} Nh6 {[%emt 0:00:08]} 13. h3 {[%emt 0:01:33]} Nf7 {[%emt 0:00:14]} 14. Bxb8 {[%emt 0:01:31]} Rxb8 {[%emt 0:00:12]} 15. Nd2 {[%emt 0:00:20]} Bh6 {[%emt 0:00:47]} 16. Kc2 {[%emt 0:00:43]} Kc7 {[%emt 0:00:22]} 17. Bc4 {[%emt 0:00:44]} Nd8 {[%emt 0:01:25]} 18. b4 {[%emt 0:01:35]} Bxd2 {[%emt 0:01:05]} 19. Bxe6 {[%emt 0:00:01]} Nxe6 {[%emt 0:00:34]} 20. Kxd2 {[%emt 0:01:29]} Rhd8+ {[%emt 0:00:02]} 21. Ke3 {[%emt 0:00:29]} Rd4 {[%emt 0:00:03]} 22. a3 {[%emt 0:00:47]} Rbd8 {[%emt 0:00:09]} 23. g3 {[%emt 0:00:25]} a5 {[%emt 0:00:10]} 24. bxa5 {[%emt 0:01:15]} Nxc5 {[%emt 0:00:30]} 25. Rc1 {[%emt 0:01:38]} Rc4 {[%emt 0:00:06]} 26. Ke2 {[%emt 0:00:13]} Nb3 {[%emt 0:00:23]} 27. Rb1 {[%emt 0:00:10]} Rxc3 {[%emt 0:00:03]} 28. a4 {[%emt 0:00:01]} Rd2+ {[%emt 0:00:12]} 29. Kf1 {[%emt 0:00:01]} Nxa5 {[%emt 0:00:14]} 30. Kg2 {[%emt 0:00:03]} Nc4 {[%emt 0:00:05]} 31. Rh2 {[%emt 0:00:23]} Rcc2 {[%emt 0:00:04]} 32. Kg1 {[%emt 0:00:08]} Re2 {[%emt 0:00:05]} 33. Kf1 {[%emt 0:00:20]} Rxe4 {[%emt 0:00:04]} 34. Ra1 {[%emt 0:00:06]} Nd2+ {[%emt 0:00:09]} 35. Kg2 {[%emt 0:00:02]} Re2 {[%emt 0:00:05]} 36. h4 {[%emt 0:00:22]} h5 {[%emt 0:00:04]} 37. Ra3 {[%emt 0:00:05]} f5 {[%emt 0:00:06]} 38. Rh1 {[%emt 0:00:15]} Ne4 {[%emt 0:00:03]} 39. Rf1 {[%emt 0:00:08]} Rxf2+ {[%emt 0:00:02]} 40. Rxf2 {[%emt 0:00:02]} Rxf2+ {[%emt 0:00:02]} 41. Kg1 {[%emt 0:00:01]} Rd2 {[%emt 0:00:03]} 42. Re3 {[%emt 0:00:05]} c5 {[%emt 0:00:01]} 43. g4 {[%emt 0:00:05]} hxg4 {[%emt 0:00:02]} 44. h5 {[%emt 0:00:01]} gxh5 {[%emt 0:00:02]} 45. a5 {[%emt 0:00:01]} c4 {[%emt 0:00:01]} 46. a6 {[%emt 0:00:01]} bxa6 {[%emt 0:00:19]} 47. Kf1 {[%emt 0:00:10]} c3 {[%emt 0:00:02]} 0-1

[Event "RUS-chT Men Rapid 2019"]
[Site "Sochi"]
[Date "2019.10.19"]
[Round "7.16"]
[White "Utnasunov, Alexander"]
[Black "Kolchin, Maxim"]
[Result "1-0"]
[ECO "A57"]
[WhiteElo "2442"]
[BlackElo "2077"]
[Annotator "NA"]
[PlyCount "98"]
[EventDate "2019.10.18"]
[EventType "swiss"]
[EventCountry "RUS"]
[SourceTitle "playchess.com"]
[Source "ChessBase"]
[SourceQuality "1"]
[TimeControl "900+10"]

1. d4 {[%emt 0:00:00]} Nf6 {[%emt 0:00:00]} 2. c4 {[%emt 0:00:00]} c5 {[%emt 0:00:00]} 3. d5 {[%emt 0:00:00]} b5 {[%emt 0:00:00]} 4. Nf3 {[%emt 0:00:00]} g6 {[%emt 0:00:00]} 5. cxb5 {[%emt 0:00:02]} a6 {[%emt 0:00:00]} 6. b6 {[%emt 0:00:02]} d6 {[%emt 0:00:09]} 7. Nc3 {[%emt 0:00:02]} Bg7 {[%emt 0:00:03]} 8. a4 {[%emt 0:00:39]} Qxb6 {[%emt 0:00:03]} 9. a5 {[%emt 0:00:01]} Qc7 {[%emt 0:00:12]} 10. Nd2 {[%emt 0:00:03]} Bb7 {[%emt 0:00:07]} 11. e4 {[%emt 0:00:06]} Nbd7 {[%emt 0:00:03]} 12. Nc4 {[%emt 0:00:25]} O-O {[%emt 0:00:24]} 13. Be2 {[%emt 0:00:02]} Ne8 {[%emt 0:00:06]} 14. Bf4 {[%emt 0:00:05]} f5 {[%emt 0:00:14]} 15. Qd2 {[%emt 0:02:37]} fxe4 {[%emt 0:01:14]} 16. Nxe4 {[%emt 0:00:48]} Ndf6 {[%emt 0:00:02]} 17. Nc3 {[%emt 0:02:08]} Ra7 {[%emt 0:02:48]} 18. O-O {[%emt 0:00:15]} Qd7 {[%emt 0:00:42]} 19. Ne3 {[%emt 0:03:45]} h6 {[%emt 0:00:41]} 20. Bg3 {[%emt 0:01:13]} Nc7 {[%emt 0:01:59]} 21. Qc2 {[%emt 0:01:25]} Kh7 {[%emt 0:02:14]} 22. h4 {[%emt 0:00:23]} Nfxd5 {[%emt 0:01:32]} 23. h5 {[%emt 0:00:33]} Qe6 {[%emt 0:01:18]} 24. hxg6+ {[%emt 0:00:39]} Kh8 {[%emt 0:00:03]} 25. Nexd5 {[%emt 0:00:05]} Nxd5 {[%emt 0:00:12]} 26. Bc4 {[%emt 0:00:43]} Nb4 {[%emt 0:00:38]} 27. Bxe6 {[%emt 0:00:15]} Nxc2 {[%emt 0:00:03]} 28. Rad1 {[%emt 0:00:02]} Nd4 {[%emt 0:00:02]} 29. Bf7 {[%emt 0:00:01]} Nf5 {[%emt 0:01:24]} 30. Bf4 {[%emt 0:00:47]} Bd4 {[%emt 0:01:51]} 31. Rfe1 {[%emt 0:00:29]} e5 {[%emt 0:00:16]} 32. Bc1 {[%emt 0:00:14]} Kg7 {[%emt 0:00:22]} 33. Ne4 {[%emt 0:00:10]} d5 {[%emt 0:00:34]} 34. Rxd4 {[%emt 0:01:19]} cxd4 {[%emt 0:00:56]} 35. Nc5 {[%emt 0:00:00]} Bc8 {[%emt 0:00:15]} 36. Rxe5 {[%emt 0:00:05]} Rc7 {[%emt 0:00:12]} 37. b4 {[%emt 0:00:06]} Nd6 {[%emt 0:00:14]} 38. Bxd5 {[%emt 0:00:32]} Kxg6 {[%emt 0:00:04]} 39. Bf3 {[%emt 0:00:07]} Nc4 {[%emt 0:00:18]} 40. Rd5 {[%emt 0:00:30]} Bb7 {[%emt 0:00:14]} 41. Bh5+ {[%emt 0:00:14]} Kh7 {[%emt 0:00:04]} 42. Rxd4 {[%emt 0:00:03]} Nxa5 {[%emt 0:00:05]} 43. Bf4 {[%emt 0:00:36]} Rg7 {[%emt 0:00:19]} 44. bxa5 {[%emt 0:00:07]} Rxg2+ {[%emt 0:00:04]} 45. Kf1 {[%emt 0:00:01]} Ba8 {[%emt 0:00:09]} 46. Rd7+ {[%emt 0:00:03]} Kg8 {[%emt 0:00:04]} 47. Be3 {[%emt 0:00:07]} Rh2 {[%emt 0:00:07]} 48. Bg4 {[%emt 0:00:01]} Rh1+ {[%emt 0:00:26]} 49. Ke2 {[%emt 0:00:01]} Re8 {[%emt 0:00:23]} 1-0

[Event "RUS-chT Men Rapid 2019"]
[Site "Sochi"]
[Date "2019.10.19"]
[Round "7.17"]
[White "Nozdrachev, Vladislav"]
[Black "Zakhartsov, Vladimir"]
[Result "1-0"]
[ECO "B90"]
[WhiteElo "2494"]
[BlackElo "2514"]
[Annotator "ChessBase"]
[PlyCount "77"]
[EventDate "2019.10.18"]
[EventType "swiss"]
[EventCountry "RUS"]
[SourceTitle "playchess.com"]
[Source "ChessBase"]
[SourceQuality "1"]
[TimeControl "900+10"]

1. e4 {[%emt 0:00:00]} c5 {[%emt 0:00:00]} 2. Nf3 {[%emt 0:00:00]} d6 {[%emt 0:00:00]} 3. d4 {[%emt 0:00:00]} Nf6 {[%emt 0:00:00]} 4. Nc3 {[%emt 0:00:00]} cxd4 {[%emt 0:00:00]} 5. Nxd4 {[%emt 0:00:00]} a6 {[%emt 0:00:00]} 6. h3 {[%emt 0:00:00]} e5 {[%emt 0:00:07]} 7. Nde2 {[%emt 0:00:02]} h5 {[%emt 0:00:06]} 8. g3 {[%emt 0:00:10]} Be7 {[%emt 0:00:19]} 9. Bg2 {[%emt 0:00:02]} Nbd7 {[%emt 0:00:22]} 10. a4 {[%emt 0:00:28]} b6 {[%emt 0:00:07]} 11. O-O {[%emt 0:00:05]} Bb7 {[%emt 0:00:02]} 12. Nd5 {[%emt 0:00:31]} Nxd5 {[%emt 0:00:21]} 13. exd5 {[%emt 0:00:02]} h4 {[%emt 0:00:19]} 14. g4 {[%emt 0:00:11]} Bg5 {[%emt 0:00:43]} 15. c4 {[%emt 0:00:10]} a5 {[%emt 0:00:40]} 16. Nc3 {[%emt 0:00:06]} Bxc1 {[%emt 0:00:24]} 17. Qxc1 {[%emt 0:00:23]} O-O {[%emt 0:00:11]} 18. f4 {[%emt 0:02:01]} Rc8 {[%emt 0:00:53]} 19. Nb5 {[%emt 0:00:57]} Nc5 {[%emt 0:00:48]} 20. fxe5 {[%emt 0:00:55]} Nd3 {[%emt 0:02:01]} 21. Qd2 {[%emt 0:00:58]} Nxe5 {[%emt 0:00:06]} 22. b3 {[%emt 0:00:02]} Rc5 {[%emt 0:02:19]} 23. Nd4 {[%emt 0:00:27]} Bc8 {[%emt 0:01:18]} 24. Rae1 {[%emt 0:00:03]} Bd7 {[%emt 0:00:39]} 25. Be4 {[%emt 0:00:26]} Rc7 {[%emt 0:01:34]} 26. Bf5 {[%emt 0:00:56]} Be8 {[%emt 0:00:04]} 27. Qf4 {[%emt 0:00:31]} g6 {[%emt 0:00:55]} 28. Qh6 {[%emt 0:01:35]} Qf6 {[%emt 0:01:06]} 29. Ne6 {[%emt 0:00:48]} Nd7 {[%emt 0:01:17]} 30. Nxf8 {[%emt 0:00:09]} gxf5 {[%emt 0:00:03]} 31. Qxf6 {[%emt 0:00:58]} Nxf6 {[%emt 0:00:01]} 32. g5 {[%emt 0:00:01]} Ne4 {[%emt 0:01:42]} 33. Rxf5 {[%emt 0:00:06]} Bxa4 {[%emt 0:01:17]} 34. Rxe4 {[%emt 0:00:15]} Bxb3 {[%emt 0:00:04]} 35. Re8 {[%emt 0:00:04]} Kg7 {[%emt 0:00:03]} 36. g6 {[%emt 0:01:45]} Bxc4 {[%emt 0:00:08]} 37. Rh5 {[%emt 0:00:31]} Bd3 {[%emt 0:00:47]} 38. Ne6+ {[%emt 0:01:00]} Kxg6 {[%emt 0:00:07]} 39. Nf4+ {[%emt 0:00:01]} 1-0